fUSD/lending_fUSD_20251120
["ID","MTS","AMOUNT","RATE_DAILY","PERIOD"]
[394472641,1763616632230,154.658056,0.00042049,120]
[394472642,1763616632295,227.121011,0.00042049,120]
[394472643,1763616632323,-2500.0,0.00016081,2]
[394472644,1763616632332,-1095.53,0.00016082,2]
[394472645,1763616632342,-1200.0,0.00016146,2]
[394472646,1763616632351,-154.55748469,0.00016147,2]
[394472647,1763616632361,-2500.0,0.00016147,2]
[394472648,1763616632373,-1000.0,0.00016175,2]
[394472649,1763616632382,-300.0,0.00016198,2]
[394472650,1763616632392,-300.0,0.00016198,2]
[394472651,1763616632402,-1200.0,0.00016199,2]
[394472652,1763616632411,-150.0,0.000162,2]
[394472653,1763616632421,-150.0,0.000162,2]
[394472654,1763616632430,-150.0,0.000162,2]
[394472655,1763616632439,-150.0,0.000162,2]
[394472656,1763616632448,-150.0,0.000162,2]
[394472657,1763616632458,-150.0,0.000162,2]
[394472658,1763616632467,-150.0,0.000162,2]
[394472659,1763616632476,-150.0,0.000162,2]
[394472660,1763616632485,-150.0,0.000162,2]
[394472661,1763616632494,-150.0,0.000162,2]
[394472662,1763616632503,-150.0,0.000162,2]
[394472663,1763616632513,-150.0,0.000162,2]
[394472664,1763616632522,-713.9,0.00016285,2]
[394472665,1763616632531,-150.0,0.0001638,2]
[394472666,1763616632541,-150.0,0.000164,2]
[394472667,1763616632549,-150.0,0.00016457,2]
[394472668,1763616632559,-150.0,0.00016457,2]
[394472670,1763616632567,-150.0,0.00016457,2]
[394472672,1763616632577,-150.0,0.000165,2]
[394472674,1763616632585,-150.0,0.0001656,2]
[394472676,1763616632595,-150.0,0.0001656,2]
[394472678,1763616632605,-150.0,0.0001656,2]
[394472680,1763616632614,-150.0,0.000166,2]
[394472682,1763616632624,-1600.0,0.00016654,2]
[394472684,1763616632633,-150.0,0.00016714,2]
[394472685,1763616632642,-150.0,0.00016714,2]
[394472686,1763616632651,-150.0,0.00016714,2]
[394472687,1763616632661,-713.9,0.00016725,2]
[394472688,1763616632672,-150.0,0.0001674,2]
[394472689,1763616632681,-150.0,0.00016778,2]
[394472690,1763616632690,-150.0,0.00016778,2]
[394472691,1763616632699,-416.09,0.00016778,2]
[394472692,1763616632710,-150.0,0.00016778,2]
[394472693,1763616632720,-550.0,0.00016799,2]
[394472694,1763616632729,-150.0,0.000168,2]
[394472695,1763616632740,-150.0,0.000168,2]
[394472696,1763616632748,-150.0,0.000168,2]
[394472697,1763616632757,-150.0,0.000168,2]
[394472698,1763616632767,-150.0,0.000168,2]
[394472699,1763616632775,-313.99370442,0.000168,2]
[394472700,1763616632785,-500.32492851,0.000168,2]
[394472701,1763616632794,-501.51080569,0.000168,2]
[394472702,1763616632804,-500.0,0.000168,2]
[394472703,1763616632814,-500.0,0.000168,2]
[394472704,1763616632823,-500.0,0.000168,2]
[394472705,1763616632833,-500.0,0.000168,2]
[394472706,1763616632843,-500.0,0.000168,2]
[394472707,1763616632852,-500.0,0.000168,2]
[394472708,1763616632862,-500.0,0.000168,2]
[394472709,1763616632872,-500.0,0.000168,2]
[394472710,1763616632882,-150.0,0.00016878,2]
[394472711,1763616632891,-354.9,0.00016878,2]
[394472712,1763616632900,-150.0,0.00016878,2]
[394472713,1763616632909,-300.0,0.00016878,2]
[394472714,1763616632918,-150.0,0.00016878,2]
[394472715,1763616632927,-417.12,0.00016878,2]
[394472716,1763616632938,-150.0,0.00016878,2]
[394472717,1763616632947,-417.12,0.00016878,2]
[394472718,1763616632957,-150.0,0.00016878,2]
[394472719,1763616632967,-288.21,0.00016891,2]
[394472720,1763616632976,-150.0,0.0001692,2]
[394472721,1763616632986,-150.0,0.0001692,2]
[394472722,1763616632997,-150.0,0.0001692,2]
[394472723,1763616633013,-168.23,0.00016942,2]
[394472724,1763616633022,-150.0,0.00016971,2]
[394472725,1763616633032,-150.0,0.00016971,2]
[394472726,1763616633041,-150.0,0.00016971,2]
[394472727,1763616633050,-208.96,0.00016983,2]
[394472728,1763616633060,-150.0,0.00017,2]
[394472729,1763616633070,-89577.09166982,0.00017,2]
[394472730,1763616633081,-2905.20302686,0.00017,2]
[394472731,1763616633092,-277.52257559,0.00017,2]
[394472732,1763616633101,-293.41636631,0.00017,2]
[394472733,1763616633110,-9779.85164683,0.00017032,2]
[394472734,1763616633123,-1333.58576814,0.00017032,2]
[394472735,1763616633200,369.208464,0.00042049,120]
[394472736,1763616633352,-546.33654919,0.00017032,2]
[394472737,1763616633424,154.658056,0.00042049,120]
[394472738,1763616633628,154.658056,0.00042049,120]
[394472739,1763616633715,154.658056,0.00042049,120]
[394472740,1763616633799,154.658056,0.00042049,120]
[394472741,1763616633888,369.208464,0.00042049,120]
[394472742,1763616633966,154.658056,0.00042049,120]
[394472743,1763616634038,151.0,0.00042049,120]
[394472744,1763616634105,369.208464,0.00042049,120]
[394472745,1763616634200,154.658056,0.00042049,120]
[394472746,1763616634267,151.0,0.00042049,120]
[394472747,1763616634350,369.208464,0.00042049,120]
[394472748,1763616634424,154.658056,0.00042049,120]
[394472749,1763616634502,369.208464,0.00042049,120]
[394472750,1763616634576,154.658056,0.00042049,120]
[394472751,1763616634649,369.208471,0.00042049,120]
[394472752,1763616634744,154.658056,0.00042049,120]
[394472753,1763616635073,154.658064,0.00042049,120]
[394472754,1763616635717,157.250382,0.00042049,60]
[394472755,1763616636019,157.250382,0.00042049,60]
[394472756,1763616636327,157.250382,0.00042049,60]
[394472757,1763616636630,157.250382,0.00042049,60]
[394472758,1763616636962,157.250382,0.00042049,60]
[394472759,1763616637249,157.250382,0.00042049,60]
[394472760,1763616637578,157.250382,0.00042049,60]
[394472761,1763616637859,157.250382,0.00042049,60]
[394472764,1763616638179,157.250382,0.00042049,60]
[394472766,1763616638193,-748340.22603584,0.00017032,2]
[394472767,1763616638202,-500.0,0.00017073,2]
[394472768,1763616638212,-500.0,0.00017073,2]
[394472769,1763616638221,-150.0,0.000171,2]
[394472770,1763616638231,-150.0,0.000171,2]
[394472771,1763616638240,-6775.9,0.00017132,2]
[394472772,1763616638250,-38451.89,0.00017132,2]
[394472773,1763616638260,-999.99,0.00017132,2]
[394472774,1763616638269,-496.15,0.00017132,2]
[394472775,1763616638278,-9999.99,0.00017132,2]
[394472776,1763616638288,-150.99,0.00017132,2]
[394472777,1763616638297,-500.0,0.00017173,2]
[394472778,1763616638307,-500.0,0.00017173,2]
[394472779,1763616638316,-500.0,0.00017173,2]
[394472780,1763616638325,-500.96749386,0.00017173,2]
[394472781,1763616638334,-500.0,0.00017173,2]
[394472782,1763616638344,-352.02128101,0.00017173,2]
[394472783,1763616638355,-151.0,0.00017174,2]
[394472784,1763616638364,-243.64112771,0.00017177,2]
[394472786,1763616638374,-500.0,0.00017177,2]
[394472788,1763616638384,-539.18721293,0.00017177,2]
[394472790,1763616638393,-500.0,0.00017177,2]
[394472792,1763616638402,-500.0,0.00017177,2]
[394472794,1763616638411,-500.0,0.00017177,2]
[394472795,1763616638421,-500.0,0.00017177,2]
[394472798,1763616638437,-500.0,0.00017177,2]
[394472800,1763616638446,-500.0,0.00017177,2]
[394472802,1763616638456,-500.0,0.00017177,2]
[394472804,1763616638466,-500.0,0.00017177,2]
[394472805,1763616638476,-500.0,0.00017177,2]
[394472807,1763616638485,-500.0,0.00017177,2]
[394472809,1763616638495,-500.0,0.00017177,2]
[394472811,1763616638505,-500.0,0.00017177,2]
[394472813,1763616638515,-500.0,0.00017177,2]
[394472815,1763616638525,-500.0,0.00017177,2]
[394472817,1763616638534,-500.0,0.00017177,2]
[394472819,1763616638544,-500.0,0.00017177,2]
[394472821,1763616638554,-500.0,0.00017177,2]
[394472823,1763616638563,-500.0,0.00017177,2]
[394472825,1763616638573,-500.0,0.00017177,2]
[394472827,1763616638582,-500.0,0.00017177,2]
[394472829,1763616638591,-500.0,0.00017177,2]
[394472831,1763616638600,-500.0,0.00017177,2]
[394472833,1763616638609,-500.0,0.00017177,2]
[394472835,1763616638620,-500.0,0.00017177,2]
[394472837,1763616638629,-500.0,0.00017177,2]
[394472839,1763616638638,-500.0,0.00017177,2]
[394472841,1763616638647,-500.0,0.00017177,2]
[394472843,1763616638657,-500.0,0.00017177,2]
[394472845,1763616638669,-500.0,0.00017177,2]
[394472847,1763616638680,-370.88728684,0.00017177,2]
[394472849,1763616638689,-500.0,0.00017177,2]
[394472851,1763616638699,-500.0,0.00017177,2]
[394472853,1763616638708,-500.0,0.00017177,2]
[394472855,1763616638718,-1767.41472051,0.00017177,2]
[394472856,1763616638728,-1767.41472051,0.00017177,2]
[394472857,1763616638738,-1767.41472051,0.00017177,2]
[394472858,1763616638748,-1767.41472051,0.00017177,2]
[394472859,1763616638758,-1767.41472051,0.00017177,2]
[394472860,1763616638767,-1767.41472051,0.00017177,2]
[394472861,1763616638776,-1767.41472051,0.00017177,2]
[394472862,1763616638785,-1767.41472051,0.00017177,2]
[394472863,1763616638795,-1767.41472051,0.00017177,2]
[394472864,1763616638804,-1767.41472051,0.00017177,2]
[394472865,1763616638813,-1767.41472051,0.00017177,2]
[394472866,1763616638823,-1767.41472051,0.00017177,2]
[394472867,1763616638831,-1767.41472051,0.00017177,2]
[394472868,1763616638840,-1767.41472051,0.00017177,2]
[394472869,1763616638850,-1767.41472051,0.00017177,2]
[394472870,1763616638859,-1767.41472051,0.00017177,2]
[394472871,1763616638869,-1767.41472051,0.00017177,2]
[394472872,1763616638879,-1767.41472051,0.00017177,2]
[394472873,1763616638888,-1767.41472051,0.00017177,2]
[394472874,1763616638898,-1767.41472051,0.00017177,2]
[394472875,1763616638907,-1767.41472051,0.00017177,2]
[394472876,1763616638917,-1767.41472051,0.00017177,2]
[394472877,1763616638926,-1767.41472051,0.00017177,2]
[394472878,1763616638935,-1767.41472051,0.00017177,2]
[394472879,1763616638944,-1767.41472051,0.00017177,2]
[394472880,1763616638953,-1767.41472051,0.00017177,2]
[394472881,1763616638962,-1767.41472051,0.00017177,2]
[394472882,1763616638971,-1767.41472051,0.00017177,2]
[394472883,1763616638979,-1767.41472051,0.00017177,2]
[394472884,1763616638988,-1767.41472051,0.00017177,2]
[394472885,1763616638997,-1767.41472051,0.00017177,2]
[394472886,1763616639007,-1767.41472051,0.00017177,2]
[394472887,1763616639016,-1767.41472051,0.00017177,2]
[394472888,1763616639026,-1767.41472051,0.00017177,2]
[394472889,1763616639035,-1749.74057331,0.00017177,2]
[394472890,1763616639045,-1749.74057331,0.00017177,2]
[394472891,1763616639054,-1749.74057331,0.00017177,2]
[394472892,1763616639063,-1749.74057331,0.00017177,2]
[394472893,1763616639073,-1749.74057331,0.00017177,2]
[394472894,1763616639082,-1749.74057331,0.00017177,2]
[394472895,1763616639091,-1749.74057331,0.00017177,2]
[394472896,1763616639101,-1749.74057331,0.00017177,2]
[394472897,1763616639110,-1749.74057331,0.00017177,2]
[394472898,1763616639120,-1749.74057331,0.00017177,2]
[394472899,1763616639129,-1749.74057331,0.00017177,2]
[394472900,1763616639138,-1749.74057331,0.00017177,2]
[394472901,1763616639147,-1749.74057331,0.00017177,2]
[394472902,1763616639157,-1749.74057331,0.00017177,2]
[394472903,1763616639166,-1749.74057331,0.00017177,2]
[394472904,1763616639175,-1749.74057331,0.00017177,2]
[394472905,1763616639184,-1749.74057331,0.00017177,2]
[394472906,1763616639193,-1749.74057331,0.00017177,2]
[394472907,1763616639203,-1749.74057331,0.00017177,2]
[394472908,1763616639212,-1749.74057331,0.00017177,2]
[394472909,1763616639222,-150.0,0.00017178,2]
[394472910,1763616639231,-9077.51,0.00017178,2]
[394472911,1763616639240,-9999.99,0.00017178,2]
[394472912,1763616639249,-39681.31,0.00017178,2]
[394472913,1763616639258,-150.0,0.00017178,2]
[394472914,1763616639267,-150.0,0.00017178,2]
[394472915,1763616639276,-150.0,0.000172,2]
[394472916,1763616639286,-150.0,0.00017229,2]
[394472917,1763616639295,-150.0,0.00017229,2]
[394472918,1763616639304,-150.0,0.00017229,2]
[394472919,1763616639313,-150.0,0.0001728,2]
[394472920,1763616639323,-150.0,0.0001728,2]
[394472921,1763616639332,-150.0,0.0001728,2]
[394472922,1763616639341,-930.52,0.00017315,2]
[394472923,1763616639351,-358.96,0.00017315,2]
[394472924,1763616639360,-9999.99,0.00017327,2]
[394472925,1763616639369,-325.74821255,0.00017348,2]
[394472926,1763616639379,-1000.0,0.00017348,2]
[394472927,1763616639387,-360.35317207,0.00017348,2]
[394472928,1763616639397,-500.0,0.00017348,2]
[394472929,1763616639406,-1000.0,0.00017348,2]
[394472930,1763616639415,-278.41536593,0.00017348,2]
[394472931,1763616639424,-293.4163663,0.00017369,2]
[394472932,1763616639434,-338.95,0.0001737,2]
[394472933,1763616639443,-169.55,0.0001737,2]
[394472934,1763616639452,-169.55,0.0001737,2]
[394472935,1763616639461,-169.55,0.0001737,2]
[394472936,1763616639470,-169.55,0.0001737,2]
[394472937,1763616639480,-169.55,0.0001737,2]
[394472938,1763616639489,-169.55,0.0001737,2]
[394472939,1763616639498,-169.55,0.0001737,2]
[394472940,1763616639507,-150.0,0.000174,2]
[394472941,1763616639516,-150.0,0.000174,2]
[394472942,1763616639525,-150.0,0.000174,2]
[394472943,1763616639534,-150.0,0.000174,2]
[394472944,1763616639543,-150.0,0.000174,2]
[394472945,1763616639553,-265.0,0.00017449,2]
[394472946,1763616639562,-150.0,0.0001746,2]
[394472947,1763616639571,-5468.06744567,0.00017464,2]
[394472948,1763616639580,-360.07939095,0.00017464,2]
[394472949,1763616639590,-2500.0,0.00017465,2]
[394472950,1763616639599,-150.0,0.00017486,2]
[394472951,1763616639607,-150.0,0.00017486,2]
[394472952,1763616639616,-150.0,0.00017486,2]
[394472953,1763616639626,-22811.00964897,0.00017493,2]
[394472954,1763616639635,-150.0,0.000175,2]
[394472955,1763616639644,-150.0,0.000175,2]
[394472956,1763616639652,-300.0,0.000175,2]
[394472957,1763616639661,-150.0,0.000175,2]
[394472958,1763616639676,-150.0,0.000175,2]
[394472959,1763616639685,-5468.06744559,0.00017512,2]
[394472960,1763616639694,-280.4614,0.00017515,2]
[394472961,1763616639703,-360.07939089,0.00017526,2]
[394472962,1763616639713,-1043.82,0.00017556,2]
[394472963,1763616639722,-5468.06744559,0.00017561,2]
[394472964,1763616639732,-22828.72,0.00017565,2]
[394472965,1763616639742,-500.0,0.00017573,2]
[394472966,1763616639751,-501.03449953,0.00017573,2]
[394472967,1763616639760,-218.28985519,0.00017573,2]
[394472968,1763616639769,-238.65157362,0.00017573,2]
[394472969,1763616639778,-360.07939089,0.00017589,2]
[394472970,1763616639787,-1000.0,0.00017599,2]
[394472971,1763616639795,-150.0,0.000176,2]
[394472972,1763616639805,-150.0,0.000176,2]
[394472973,1763616639814,-3362.58224346,0.00017609,2]
[394472974,1763616639823,-238.6515736,0.00017609,2]
[394472975,1763616639832,-5468.06744559,0.00017609,2]
[394472976,1763616639964,-1600.0,0.00017615,2]
[394472977,1763616639974,-822.0,0.00017615,2]
[394472978,1763616639983,-1256.0,0.00017615,2]
[394472979,1763616639993,-794.0,0.00017615,2]
[394472980,1763616640002,-1191.0,0.00017615,2]
[394472981,1763616640011,-907.0,0.00017615,2]
[394472982,1763616640020,-3434.0,0.00017615,2]
[394472983,1763616640032,-575.0,0.00017615,2]
[394472984,1763616640042,-609.0,0.00017615,2]
[394472985,1763616640051,-1000.0,0.00017621,2]
[394472986,1763616640060,-1000.0,0.00017621,2]
[394472987,1763616640070,-150.0,0.0001764,2]
[394472988,1763616640080,-150.0,0.0001764,2]
[394472989,1763616640089,-150.0,0.0001764,2]
[394472990,1763616640099,-150.0,0.00017645,2]
[394472991,1763616640108,-1213.79003541,0.00017646,2]
[394472992,1763616640117,-3362.58224346,0.00017646,2]
[394472993,1763616640127,-238.6515736,0.00017646,2]
[394472994,1763616640136,-360.07939089,0.00017651,2]
[394472995,1763616640145,-500.0,0.00017655,2]
[394472996,1763616640154,-83187.64353848,0.00017656,2]
[394472997,1763616640163,-5468.06744559,0.00017658,2]
[394472998,1763616640172,-217.54708395,0.00017672,2]
[394472999,1763616640181,-503.08548184,0.00017673,2]
[394473000,1763616640191,-383.28869737,0.00017673,2]
[394473001,1763616640200,-500.0,0.00017673,2]
[394473002,1763616640209,-500.0,0.00017673,2]
[394473003,1763616640218,-500.0,0.00017673,2]
[394473004,1763616640227,-503.86976296,0.00017673,2]
[394473005,1763616640236,-500.60845142,0.00017673,2]
[394473006,1763616640245,-500.0,0.00017673,2]
[394473007,1763616640254,-500.0,0.00017673,2]
[394473008,1763616640263,-500.0,0.00017673,2]
[394473009,1763616640272,-3362.58224346,0.00017682,2]
[394473010,1763616640281,-238.6515736,0.00017682,2]
[394473011,1763616640291,-151.0,0.00017687,2]
[394473012,1763616640300,-151.0,0.00017687,2]
[394473013,1763616640310,-151.0,0.00017687,2]
[394473014,1763616640319,-151.0,0.00017687,2]
[394473015,1763616640329,-151.0,0.00017687,2]
[394473016,1763616640339,-290.36041466,0.00017687,2]
[394473017,1763616640348,-250.0,0.00017689,2]
[394473018,1763616640357,-300.0,0.00017689,2]
[394473019,1763616640366,-5000.0,0.00017689,4]
[394473020,1763616640376,-193.0,0.00017689,2]
[394473021,1763616640386,-250.0,0.00017689,2]
[394473022,1763616640395,-300.0,0.00017689,2]
[394473023,1763616640404,-2500.0,0.00017689,2]
[394473024,1763616640413,-150.12675746,0.00017689,2]
[394473025,1763616640423,-250.0,0.00017689,2]
[394473026,1763616640432,-150.0,0.00017689,2]
[394473027,1763616640442,-300.0,0.0001769,2]
[394473028,1763616640451,-300.0,0.0001769,2]
[394473029,1763616640460,-300.0,0.0001769,2]
[394473030,1763616640469,-500.0,0.00017696,2]
[394473031,1763616640479,-1380.97,0.00017699,2]
[394473032,1763616640488,-603.68373459,0.00017699,2]
[394473033,1763616640498,-150.0,0.000177,2]
[394473034,1763616640508,-150.0,0.000177,2]
[394473035,1763616640518,-1010.0,0.000177,2]
[394473036,1763616640527,-403.0,0.000177,5]
[394473037,1763616640537,-420.0,0.00017706,2]
[394473038,1763616640546,-420.0,0.00017706,2]
[394473039,1763616640555,-5468.06744559,0.00017706,2]
[394473040,1763616640567,-360.07939089,0.00017713,2]
[394473041,1763616640576,-3362.58224346,0.00017718,2]
[394473043,1763616640586,-238.6515736,0.00017718,2]
[394473044,1763616640595,-1000.0,0.00017721,2]
[394473045,1763616640604,-607.71724465,0.00017721,2]
[394473046,1763616640613,-1000.0,0.00017721,2]
[394473047,1763616640624,-1464.75324384,0.00017721,2]
[394473048,1763616640633,-293.4163663,0.00017738,2]
[394473049,1763616640642,-1680.0,0.00017739,2]
[394473050,1763616640653,-150.0,0.00017743,2]
[394473051,1763616640663,-150.0,0.00017743,2]
[394473052,1763616640679,-150.0,0.00017743,2]
[394473053,1763616640689,-3413.0,0.00017748,2]
[394473054,1763616640700,-500.0,0.00017754,2]
[394473055,1763616640710,-3362.58224346,0.00017755,2]
[394473056,1763616640722,-238.6515736,0.00017755,2]
[394473057,1763616640732,-5468.06744559,0.00017755,2]
[394473058,1763616640741,-9875.98127037,0.00017759,2]
[394473059,1763616640752,-360.07939089,0.00017775,2]
[394473060,1763616640761,-2000.0,0.00017786,2]
[394473061,1763616640771,-2000.0,0.00017789,2]
[394473062,1763616640781,-2000.0,0.00017789,2]
[394473063,1763616640790,-2000.0,0.00017789,2]
[394473064,1763616640800,-2000.0,0.00017789,2]
[394473065,1763616640809,-2000.0,0.00017789,2]
[394473066,1763616640822,-2000.0,0.00017789,2]
[394473067,1763616640832,-2000.0,0.00017789,2]
[394473068,1763616640843,-2000.0,0.00017789,2]
[394473069,1763616640852,-1805.259,0.00017789,2]
[394473070,1763616640862,-3362.58224346,0.00017791,2]
[394473071,1763616640872,-238.6515736,0.00017791,2]
[394473072,1763616640882,-300.0,0.00017793,2]
[394473073,1763616640892,-1902.5731757,0.000178,2]
[394473074,1763616640901,-168.1788413,0.000178,2]
[394473075,1763616640911,-169.55,0.000178,2]
[394473076,1763616640921,-150.0,0.000178,2]
[394473077,1763616640931,-150.0,0.000178,2]
[394473078,1763616640940,-1000.0,0.000178,2]
[394473079,1763616640949,-5468.06744559,0.00017803,2]
[394473080,1763616640958,-1000.0,0.00017805,2]
[394473081,1763616640967,-1000.0,0.00017805,2]
[394473082,1763616640976,-1000.0,0.00017805,2]
[394473083,1763616640985,-1000.0,0.00017805,2]
[394473084,1763616640994,-354.171,0.00017805,2]
[394473085,1763616641004,-1000.0,0.00017814,2]
[394473086,1763616641017,-1000.0,0.00017814,2]
[394473087,1763616641026,-1902.57317565,0.00017817,2]
[394473088,1763616641036,-150.0,0.0001782,2]
[394473089,1763616641045,-711.50632,0.0001782,2]
[394473090,1763616641054,-3362.58224346,0.00017827,2]
[394473091,1763616641064,-238.6515736,0.00017827,2]
[394473092,1763616641075,-1902.57317565,0.00017833,2]
[394473093,1763616641086,-64459.10341372,0.00017836,2]
[394473094,1763616641096,-360.07939089,0.00017838,2]
[394473095,1763616641106,-1902.57317565,0.0001785,2]
[394473096,1763616641116,-168.17884129,0.0001785,2]
[394473097,1763616641125,-5468.06744559,0.00017852,2]
[394473098,1763616641134,-200.0,0.00017855,2]
[394473099,1763616641145,-500.0,0.00017855,2]
[394473100,1763616641155,-2000.0,0.00017856,2]
[394473101,1763616641165,-200.0,0.00017856,2]
[394473102,1763616641175,-200.0,0.00017856,2]
[394473103,1763616641184,-3362.58224346,0.00017864,2]
[394473104,1763616641195,-238.6515736,0.00017864,2]
[394473105,1763616641205,-1902.57317565,0.00017867,2]
[394473106,1763616641214,-500.0,0.00017873,2]
[394473107,1763616641223,-160.73608923,0.00017873,2]
[394473108,1763616641232,-572.18369893,0.00017873,2]
[394473109,1763616641243,-500.62908268,0.00017873,2]
[394473110,1763616641252,-297.20176291,0.00017873,2]
[394473111,1763616641263,-161.60192736,0.00017873,2]
[394473112,1763616641274,-501.27362339,0.00017873,2]
[394473113,1763616641284,-500.0,0.00017873,2]
[394473114,1763616641294,-316.17285237,0.00017873,2]
[394473115,1763616641305,-500.0,0.00017873,2]
[394473116,1763616641315,-500.90554177,0.00017873,2]
[394473117,1763616641326,-500.0,0.00017873,2]
[394473118,1763616641335,-150.0,0.00017873,2]
[394473119,1763616641345,-25000.0,0.00017882,3]
[394473120,1763616641355,-1902.57317565,0.00017883,2]
[394473121,1763616641368,-6015.782,0.00017891,2]
[394473122,1763616641378,-431.143,0.00017891,2]
[394473123,1763616641388,-25000.0,0.00017891,3]
[394473124,1763616641397,-162.95436659,0.00017893,2]
[394473125,1763616641406,-1500.0,0.00017896,2]
[394473126,1763616641416,-472.01807675,0.00017896,2]
[394473127,1763616641425,-500.0,0.00017896,2]
[394473128,1763616641435,-500.0,0.00017896,2]
[394473129,1763616641444,-500.0,0.00017896,2]
[394473130,1763616641453,-500.0,0.00017896,2]
[394473131,1763616641463,-150.0,0.00017896,2]
[394473132,1763616641474,-500.0,0.00017896,2]
[394473133,1763616641485,-150.0,0.00017896,2]
[394473134,1763616641496,-500.0,0.00017896,2]
[394473135,1763616641506,-500.0,0.00017896,2]
[394473136,1763616641516,-500.0,0.00017896,2]
[394473137,1763616641526,-150.0,0.00017896,2]
[394473138,1763616641536,-500.0,0.00017896,2]
[394473139,1763616641545,-580.0,0.00017896,2]
[394473140,1763616641554,-150.0,0.00017896,2]
[394473141,1763616641568,-500.0,0.00017896,2]
[394473142,1763616641577,-10309.04130668,0.00017899,2]
[394473143,1763616641587,-509.31660826,0.00017899,2]
[394473144,1763616641596,-604.69,0.00017899,2]
[394473145,1763616641605,-604.69,0.00017899,2]
[394473146,1763616641614,-604.69,0.00017899,2]
[394473147,1763616641624,-500.0,0.00017899,2]
[394473148,1763616641633,-503.53163744,0.00017899,2]
[394473149,1763616641642,-500.0,0.00017899,2]
[394473150,1763616641651,-523.99537992,0.00017899,2]
[394473151,1763616641660,-500.0,0.00017899,2]
[394473152,1763616641673,-500.0,0.00017899,2]
[394473153,1763616641683,-500.0,0.00017899,2]
[394473154,1763616641692,-417.54862495,0.00017899,2]
[394473155,1763616641702,-500.0,0.00017899,2]
[394473156,1763616641711,-411.7374563,0.00017899,2]
[394473157,1763616641722,-514.28691293,0.00017899,2]
[394473158,1763616641731,-500.0,0.00017899,2]
[394473159,1763616641741,-500.0,0.00017899,2]
[394473160,1763616641751,-500.0,0.00017899,2]
[394473161,1763616641764,-500.0,0.00017899,2]
[394473162,1763616641773,-639.05819945,0.00017899,2]
[394473163,1763616641782,-6535.35883216,0.00017899,2]
[394473164,1763616641791,-1000.0,0.000179,2]
[394473165,1763616641801,-1902.57317565,0.000179,2]
[394473166,1763616641810,-25000.0,0.000179,3]
[394473167,1763616641819,-168.17884129,0.000179,2]
[394473168,1763616641828,-1000.0,0.000179,2]
[394473169,1763616641838,-1000.0,0.000179,2]
[394473170,1763616641847,-1000.0,0.000179,2]
[394473171,1763616641856,-529.632,0.000179,2]
[394473172,1763616641866,-453.365,0.000179,2]
[394473173,1763616641878,-3362.58224346,0.000179,2]
[394473174,1763616641887,-25000.0,0.000179,3]
[394473175,1763616641897,-1011.0,0.000179,2]
[394473176,1763616641907,-238.6515736,0.000179,2]
[394473177,1763616641916,-5468.06744559,0.000179,2]
[394473178,1763616641925,-360.07939089,0.000179,2]
[394473179,1763616641935,-515.35190765,0.000179,2]
[394473180,1763616641945,-500.37989577,0.000179,2]
[394473181,1763616641954,-3497.0,0.000179,2]
[394473182,1763616641965,-935.0,0.00017908,2]
[394473183,1763616641974,-500.0,0.00017923,2]
[394473184,1763616641984,-500.0,0.00017923,2]
[394473185,1763616641993,-500.0,0.00017923,2]
[394473186,1763616642002,-500.0,0.00017923,2]
[394473187,1763616642012,-500.0,0.00017923,2]